[Event "*** SCC Grand Prix: Titled Tuesday Blitz"]
[Site "Chess.com"]
[Date "2020.07.07"]
[Round "10"]
[White "MiroVlasenko"]
[Black "Chesswizard_2007"]
[Result "0-1"]
[WhiteElo "2602"]
[BlackElo "2476"]
[TimeControl "180+1"]
[EndTime "11:57:36 PDT"]
[Termination "Chesswizard_2007 won by resignation"]

1. d4 {[%clk 0:03:00.9]} 1... Nf6 {[%clk 0:02:47.4]} 2. Bg5 {[%clk 0:03:00]}
2... d5 {[%clk 0:02:45.4]} 3. e3 {[%clk 0:02:59.9]} 3... Ne4 {[%clk 0:02:45.9]}
4. Bf4 {[%clk 0:02:59.8]} 4... h5 {[%clk 0:02:46.6]} 5. Nf3 {[%clk 0:02:52.1]}
5... c5 {[%clk 0:02:28]} 6. Bd3 {[%clk 0:02:48.1]} 6... Nc6 {[%clk 0:02:24.1]}
7. Nbd2 {[%clk 0:02:33.2]} 7... Nxd2 {[%clk 0:02:17.7]} 8. Qxd2 {[%clk 0:02:33]}
8... c4 {[%clk 0:02:13.9]} 9. Be2 {[%clk 0:02:31]} 9... Bf5 {[%clk 0:02:05.4]}
10. b3 {[%clk 0:02:19.4]} 10... c3 {[%clk 0:02:04.2]} 11. Qd1 {[%clk 0:02:10]}
11... Nb4 {[%clk 0:02:03.5]} 12. Bd3 {[%clk 0:02:08.6]} 12... Nxd3+ {[%clk
0:01:54.4]} 13. cxd3 {[%clk 0:02:08.6]} 13... e6 {[%clk 0:01:52.6]} 14. a3
{[%clk 0:01:58.5]} 14... Be7 {[%clk 0:01:50]} 15. h3 {[%clk 0:01:51.3]} 15...
Rc8 {[%clk 0:01:47.5]} 16. Qc2 {[%clk 0:01:49.3]} 16... Qb6 {[%clk 0:01:46]} 17.
Ke2 {[%clk 0:01:42.2]} 17... f6 {[%clk 0:01:32.5]} 18. b4 {[%clk 0:01:37.6]}
18... Qa6 {[%clk 0:01:28.1]} 19. Rhb1 {[%clk 0:01:29.4]} 19... g5 {[%clk
0:01:22.1]} 20. Bg3 {[%clk 0:01:25.6]} 20... h4 {[%clk 0:01:20.1]} 21. Bh2
{[%clk 0:01:25.1]} 21... g4 {[%clk 0:01:17.6]} 22. hxg4 {[%clk 0:01:04.8]} 22...
Bxg4 {[%clk 0:01:18.5]} 23. Rb3 {[%clk 0:01:00.4]} 23... h3 {[%clk 0:01:07.4]}
24. gxh3 {[%clk 0:00:55.8]} 24... Rxh3 {[%clk 0:00:58.1]} 25. Bg3 {[%clk
0:00:55.5]} 25... Bd6 {[%clk 0:00:55]} 26. Rg1 {[%clk 0:00:53.9]} 26... e5
{[%clk 0:00:41.9]} 27. dxe5 {[%clk 0:00:25.5]} 27... fxe5 {[%clk 0:00:40.2]} 28.
b5 {[%clk 0:00:19.6]} 28... Qa4 {[%clk 0:00:37.6]} 29. e4 {[%clk 0:00:20]} 29...
dxe4 {[%clk 0:00:28.2]} 30. dxe4 {[%clk 0:00:18.4]} 30... Qc4+ {[%clk
0:00:28.1]} 31. Qd3 {[%clk 0:00:17.7]} 31... Bxf3+ {[%clk 0:00:27.2]} 0-1

[Event "*** SCC Grand Prix: Titled Tuesday Blitz"]
[Site "Chess.com"]
[Date "2020.07.07"]
[Round "10"]
[White "DarkAlekhine"]
[Black "Sam_ChessMood"]
[Result "1-0"]
[WhiteElo "2650"]
[BlackElo "2822"]
[TimeControl "180+1"]
[EndTime "11:57:40 PDT"]
[Termination "DarkAlekhine won by resignation"]

1. e4 {[%clk 0:03:00.9]} 1... c6 {[%clk 0:03:00.3]} 2. d4 {[%clk 0:03:00.7]}
2... d5 {[%clk 0:03:01.2]} 3. e5 {[%clk 0:03:01]} 3... Bf5 {[%clk 0:03:00.7]} 4.
Nf3 {[%clk 0:03:01.5]} 4... e6 {[%clk 0:03:01]} 5. Be2 {[%clk 0:03:02]} 5... Ne7
{[%clk 0:03:01.3]} 6. O-O {[%clk 0:02:57.4]} 6... Ng6 {[%clk 0:03:01.4]} 7. c3
{[%clk 0:02:52.8]} 7... f6 {[%clk 0:02:55.9]} 8. exf6 {[%clk 0:02:47.5]} 8...
Qxf6 {[%clk 0:02:55.4]} 9. Re1 {[%clk 0:02:30.3]} 9... Bd6 {[%clk 0:02:54.3]}
10. Nbd2 {[%clk 0:01:51.6]} 10... O-O {[%clk 0:02:53.7]} 11. Nf1 {[%clk
0:01:52]} 11... Nd7 {[%clk 0:02:43.6]} 12. Ng3 {[%clk 0:01:51.8]} 12... e5
{[%clk 0:02:30.7]} 13. dxe5 {[%clk 0:01:38.5]} 13... Ndxe5 {[%clk 0:02:28.6]}
14. Nxe5 {[%clk 0:01:26.9]} 14... Bxe5 {[%clk 0:02:16.5]} 15. Nxf5 {[%clk
0:01:20.9]} 15... Qxf5 {[%clk 0:02:16.7]} 16. Be3 {[%clk 0:01:21.5]} 16... Bf4
{[%clk 0:01:33.8]} 17. Bd4 {[%clk 0:01:04.8]} 17... Kh8 {[%clk 0:01:01.4]} 18.
Bd3 {[%clk 0:00:46.3]} 18... Qg5 {[%clk 0:00:55.1]} 19. g3 {[%clk 0:00:46]}
19... Bc7 {[%clk 0:00:43.4]} 20. Qc1 {[%clk 0:00:29.3]} 20... Qxc1 {[%clk
0:00:26.1]} 21. Raxc1 {[%clk 0:00:28.8]} 21... Bb6 {[%clk 0:00:26.6]} 22. Bxb6
{[%clk 0:00:23.4]} 22... a6 {[%clk 0:00:26.6]} 23. Bxg6 {[%clk 0:00:19.9]} 23...
hxg6 {[%clk 0:00:26.3]} 24. f4 {[%clk 0:00:20.2]} 24... Rf7 {[%clk 0:00:25.3]}
25. Re6 {[%clk 0:00:19.5]} 25... Kh7 {[%clk 0:00:23.1]} 26. Rce1 {[%clk
0:00:19.2]} 26... Raf8 {[%clk 0:00:23.1]} 27. h4 {[%clk 0:00:19.3]} 27... Rf5
{[%clk 0:00:22.8]} 28. Bd4 {[%clk 0:00:18.3]} 28... R8f7 {[%clk 0:00:22.9]} 29.
Re7 {[%clk 0:00:18.5]} 29... Kh6 {[%clk 0:00:21.6]} 30. Kg2 {[%clk 0:00:18.3]}
30... a5 {[%clk 0:00:19.2]} 31. Kf3 {[%clk 0:00:17.7]} 1-0

[Event "*** SCC Grand Prix: Titled Tuesday Blitz"]
[Site "Chess.com"]
[Date "2020.07.07"]
[Round "10"]
[White "rynos0411"]
[Black "ahachess"]
[Result "1-0"]
[WhiteElo "2440"]
[BlackElo "2286"]
[TimeControl "180+1"]
[EndTime "11:57:40 PDT"]
[Termination "rynos0411 won on time"]

1. d4 {[%clk 0:03:00.5]} 1... d5 {[%clk 0:02:58.6]} 2. c4 {[%clk 0:03:00.6]}
2... c6 {[%clk 0:02:57.9]} 3. Nc3 {[%clk 0:02:59]} 3... e6 {[%clk 0:02:57.1]} 4.
cxd5 {[%clk 0:02:54.3]} 4... exd5 {[%clk 0:02:56.7]} 5. Nf3 {[%clk 0:02:51]}
5... Bf5 {[%clk 0:02:53.9]} 6. Bf4 {[%clk 0:02:49.2]} 6... Bd6 {[%clk
0:02:53.8]} 7. Bg3 {[%clk 0:02:49]} 7... Nf6 {[%clk 0:02:47.8]} 8. e3 {[%clk
0:02:48]} 8... O-O {[%clk 0:02:47.3]} 9. Bd3 {[%clk 0:02:47.8]} 9... Bxd3 {[%clk
0:02:46.7]} 10. Qxd3 {[%clk 0:02:48.7]} 10... Re8 {[%clk 0:02:47]} 11. a3 {[%clk
0:02:42.1]} 11... a5 {[%clk 0:02:38.5]} 12. Rb1 {[%clk 0:02:36.5]} 12... Qe7
{[%clk 0:02:26.3]} 13. O-O {[%clk 0:02:34.7]} 13... Bxg3 {[%clk 0:02:25.2]} 14.
hxg3 {[%clk 0:02:35.6]} 14... Nbd7 {[%clk 0:02:24.1]} 15. Nd2 {[%clk 0:02:30.1]}
15... Ng4 {[%clk 0:02:10.7]} 16. Rfe1 {[%clk 0:02:20.1]} 16... Qf6 {[%clk
0:02:05.1]} 17. Re2 {[%clk 0:02:16.1]} 17... Qh6 {[%clk 0:02:02]} 18. Nf3 {[%clk
0:02:08.7]} 18... Ndf6 {[%clk 0:01:54.2]} 19. e4 {[%clk 0:02:00.7]} 19... dxe4
{[%clk 0:01:23.9]} 20. Nxe4 {[%clk 0:02:01.6]} 20... Qg6 {[%clk 0:00:57]} 21.
Nxf6+ {[%clk 0:01:55]} 21... Nxf6 {[%clk 0:00:55.2]} 22. Qxg6 {[%clk 0:01:50.1]}
22... hxg6 {[%clk 0:00:55.2]} 23. Rbe1 {[%clk 0:01:49.3]} 23... Rxe2 {[%clk
0:00:54.8]} 24. Rxe2 {[%clk 0:01:50.2]} 24... Re8 {[%clk 0:00:54.5]} 25. Kf1
{[%clk 0:01:49]} 25... Rxe2 {[%clk 0:00:53.9]} 26. Kxe2 {[%clk 0:01:48.8]} 26...
Kf8 {[%clk 0:00:46.9]} 27. Ne5 {[%clk 0:01:43.8]} 27... Ke7 {[%clk 0:00:47]} 28.
Nc4 {[%clk 0:01:40.9]} 28... a4 {[%clk 0:00:43.1]} 29. Nb6 {[%clk 0:01:40.6]}
29... Kd6 {[%clk 0:00:35.4]} 30. Nxa4 {[%clk 0:01:39.4]} 30... Kd5 {[%clk
0:00:36]} 31. Kd3 {[%clk 0:01:37.5]} 31... Ng4 {[%clk 0:00:31.9]} 32. Nc3+
{[%clk 0:01:36.2]} 32... Kd6 {[%clk 0:00:30.9]} 33. f3 {[%clk 0:01:36.6]} 33...
Nf6 {[%clk 0:00:28.3]} 34. Ne4+ {[%clk 0:01:36.1]} 34... Ke6 {[%clk 0:00:27.6]}
35. Nxf6 {[%clk 0:01:32.6]} 35... gxf6 {[%clk 0:00:25.1]} 36. Kc4 {[%clk
0:01:25.9]} 36... Kd6 {[%clk 0:00:24.7]} 37. a4 {[%clk 0:01:25.4]} 37... f5
{[%clk 0:00:22]} 38. b4 {[%clk 0:01:24.2]} 38... g5 {[%clk 0:00:21.9]} 39. b5
{[%clk 0:01:23]} 39... f4 {[%clk 0:00:17.7]} 40. gxf4 {[%clk 0:01:18.4]} 40...
gxf4 {[%clk 0:00:17.8]} 41. bxc6 {[%clk 0:01:18.7]} 41... Kxc6 {[%clk
0:00:15.3]} 42. d5+ {[%clk 0:01:18.9]} 42... Kd6 {[%clk 0:00:15.4]} 43. Kd4
{[%clk 0:01:14.4]} 43... f5 {[%clk 0:00:08.3]} 44. a5 {[%clk 0:01:13.6]} 1-0

[Event "*** SCC Grand Prix: Titled Tuesday Blitz"]
[Site "Chess.com"]
[Date "2020.07.07"]
[Round "10"]
[White "stanyga"]
[Black "Maghalashvili"]
[Result "0-1"]
[WhiteElo "2622"]
[BlackElo "2763"]
[TimeControl "180+1"]
[EndTime "11:57:43 PDT"]
[Termination "Maghalashvili won on time"]

1. e4 {[%clk 0:03:00]} 1... c5 {[%clk 0:02:59.5]} 2. Nf3 {[%clk 0:02:59.9]} 2...
d6 {[%clk 0:03:00.3]} 3. d4 {[%clk 0:02:59.5]} 3... cxd4 {[%clk 0:03:01.2]} 4.
Nxd4 {[%clk 0:02:59.8]} 4... Nf6 {[%clk 0:03:01.9]} 5. Nc3 {[%clk 0:03:00]} 5...
a6 {[%clk 0:03:02.8]} 6. h3 {[%clk 0:02:54.6]} 6... b5 {[%clk 0:03:01.6]} 7. g4
{[%clk 0:02:51.1]} 7... Bb7 {[%clk 0:03:01]} 8. Bg2 {[%clk 0:02:50.8]} 8... e6
{[%clk 0:03:00.9]} 9. g5 {[%clk 0:02:49.7]} 9... Nfd7 {[%clk 0:02:50.8]} 10. Be3
{[%clk 0:02:41.1]} 10... Be7 {[%clk 0:02:45.7]} 11. h4 {[%clk 0:02:38.6]} 11...
Nc5 {[%clk 0:02:43.9]} 12. a3 {[%clk 0:02:35.5]} 12... Nbd7 {[%clk 0:02:41.9]}
13. f4 {[%clk 0:02:19.4]} 13... Rc8 {[%clk 0:02:33.4]} 14. h5 {[%clk 0:02:14.5]}
14... Nb6 {[%clk 0:02:30.5]} 15. Qe2 {[%clk 0:02:06.1]} 15... Nc4 {[%clk
0:02:22.2]} 16. O-O-O {[%clk 0:01:50.9]} 16... Qa5 {[%clk 0:02:20]} 17. g6
{[%clk 0:01:48.6]} 17... Nxa3 {[%clk 0:02:05.6]} 18. gxf7+ {[%clk 0:01:48]}
18... Kxf7 {[%clk 0:02:05.3]} 19. f5 {[%clk 0:00:46.2]} 19... e5 {[%clk
0:01:56.3]} 20. h6 {[%clk 0:00:46]} 20... g6 {[%clk 0:01:40.9]} 21. fxg6+ {[%clk
0:00:45.8]} 21... hxg6 {[%clk 0:01:41.8]} 22. Rdf1+ {[%clk 0:00:41.6]} 22... Ke8
{[%clk 0:01:41]} 23. Qg4 {[%clk 0:00:35.3]} 23... b4 {[%clk 0:01:34.6]} 24.
Qxg6+ {[%clk 0:00:35.1]} 24... Kd8 {[%clk 0:01:33.2]} 25. Bg5 {[%clk 0:00:30.2]}
25... Bxg5+ {[%clk 0:01:22.9]} 26. Qxg5+ {[%clk 0:00:30.3]} 26... Kc7 {[%clk
0:01:22.8]} 27. Qe7+ {[%clk 0:00:29.5]} 27... Kb8 {[%clk 0:01:18.6]} 28. Qxd6+
{[%clk 0:00:29.7]} 28... Ka8 {[%clk 0:01:18.2]} 29. Nd5 {[%clk 0:00:27.9]} 29...
exd4 {[%clk 0:01:03.3]} 30. Nb6+ {[%clk 0:00:27.1]} 30... Ka7 {[%clk 0:01:03]}
31. Nxc8+ {[%clk 0:00:26.5]} 31... Rxc8 {[%clk 0:01:03.9]} 32. Qxd4 {[%clk
0:00:20]} 32... Qb6 {[%clk 0:00:56.2]} 33. Kd1 {[%clk 0:00:01.6]} 33... Rd8
{[%clk 0:00:54]} 34. Qxd8 {[%clk 0:00:01.7]} 34... Qxd8+ {[%clk 0:00:54.6]} 35.
Kc1 {[%clk 0:00:02.1]} 35... Qg5+ {[%clk 0:00:48.5]} 0-1

[Event "*** SCC Grand Prix: Titled Tuesday Blitz"]
[Site "Chess.com"]
[Date "2020.07.07"]
[Round "10"]
[White "Mikasinski"]
[Black "Quattroporte300"]
[Result "0-1"]
[WhiteElo "2436"]
[BlackElo "2313"]
[TimeControl "180+1"]
[EndTime "11:57:43 PDT"]
[Termination "Quattroporte300 won on time"]

1. e4 {[%clk 0:03:00.9]} 1... e5 {[%clk 0:02:58.2]} 2. Nf3 {[%clk 0:03:00.7]}
2... Nc6 {[%clk 0:02:58.5]} 3. Nc3 {[%clk 0:03:00.8]} 3... Nf6 {[%clk
0:02:58.1]} 4. Bb5 {[%clk 0:03:01.3]} 4... Bd6 {[%clk 0:02:56.9]} 5. Bxc6 {[%clk
0:02:59.7]} 5... dxc6 {[%clk 0:02:56.6]} 6. d4 {[%clk 0:03:00.3]} 6... Bb4
{[%clk 0:02:51.4]} 7. dxe5 {[%clk 0:02:38.6]} 7... Qxd1+ {[%clk 0:02:50.1]} 8.
Kxd1 {[%clk 0:02:38.1]} 8... Bxc3 {[%clk 0:02:45.4]} 9. bxc3 {[%clk 0:02:37.6]}
9... Nxe4 {[%clk 0:02:45.8]} 10. Ke1 {[%clk 0:02:32.6]} 10... Nxc3 {[%clk
0:02:44.7]} 11. Bb2 {[%clk 0:02:24.4]} 11... Nd5 {[%clk 0:02:36.7]} 12. Ba3
{[%clk 0:02:16.2]} 12... Bf5 {[%clk 0:02:30.3]} 13. Nd4 {[%clk 0:02:14.1]} 13...
Bg6 {[%clk 0:02:24.6]} 14. f3 {[%clk 0:01:53.5]} 14... O-O-O {[%clk 0:02:22]}
15. Kf2 {[%clk 0:01:49.6]} 15... Rhe8 {[%clk 0:02:16.6]} 16. Rhe1 {[%clk
0:01:48.3]} 16... Nb6 {[%clk 0:02:11.2]} 17. Rad1 {[%clk 0:01:44.6]} 17... Nc4
{[%clk 0:02:08.8]} 18. Bc1 {[%clk 0:01:23.7]} 18... Rxe5 {[%clk 0:02:02]} 19. c3
{[%clk 0:00:40.9]} 19... c5 {[%clk 0:01:47.5]} 20. Nb5 {[%clk 0:00:33.3]} 20...
Rxd1 {[%clk 0:01:40.3]} 21. Rxd1 {[%clk 0:00:29.3]} 21... a6 {[%clk 0:01:34.4]}
22. Na3 {[%clk 0:00:23.3]} 22... Nb6 {[%clk 0:01:22.4]} 23. Bf4 {[%clk
0:00:22.9]} 23... Re6 {[%clk 0:01:20]} 24. Be3 {[%clk 0:00:20.2]} 24... Na4
{[%clk 0:01:13.2]} 25. Rc1 {[%clk 0:00:13.3]} 25... Nb2 {[%clk 0:01:09]} 26. Ke2
{[%clk 0:00:06.6]} 26... b6 {[%clk 0:00:57.1]} 27. c4 {[%clk 0:00:04.1]} 27...
Nd3 {[%clk 0:00:50.7]} 28. Rc3 {[%clk 0:00:03.9]} 28... Nb4 {[%clk 0:00:42.1]}
29. Kf2 {[%clk 0:00:02.3]} 29... Nxa2 {[%clk 0:00:41.8]} 30. Rb3 {[%clk
0:00:02.7]} 30... Nb4 {[%clk 0:00:40.3]} 31. Nb1 {[%clk 0:00:01.7]} 31... Bc2
{[%clk 0:00:35.7]} 32. Rb2 {[%clk 0:00:01.3]} 32... Nd3+ {[%clk 0:00:35.7]} 0-1

[Event "*** SCC Grand Prix: Titled Tuesday Blitz"]
[Site "Chess.com"]
[Date "2020.07.07"]
[Round "10"]
[White "Jbd735"]
[Black "Harry_Rakkel"]
[Result "0-1"]
[WhiteElo "2436"]
[BlackElo "2560"]
[TimeControl "180+1"]
[EndTime "11:57:44 PDT"]
[Termination "Harry_Rakkel won on time"]

1. e4 {[%clk 0:03:00.9]} 1... c5 {[%clk 0:02:59.8]} 2. Nf3 {[%clk 0:03:00.6]}
2... d6 {[%clk 0:02:59.6]} 3. d4 {[%clk 0:03:01.2]} 3... cxd4 {[%clk 0:02:59]}
4. Nxd4 {[%clk 0:03:02.1]} 4... Nf6 {[%clk 0:02:59]} 5. Nc3 {[%clk 0:03:02.2]}
5... a6 {[%clk 0:02:59.1]} 6. Bg5 {[%clk 0:03:02.2]} 6... e6 {[%clk 0:02:58.3]}
7. f4 {[%clk 0:03:02.1]} 7... Be7 {[%clk 0:02:55.1]} 8. Qe2 {[%clk 0:03:01.5]}
8... b5 {[%clk 0:02:35.1]} 9. O-O-O {[%clk 0:02:55.8]} 9... b4 {[%clk
0:02:34.2]} 10. Na4 {[%clk 0:02:45.9]} 10... Bb7 {[%clk 0:02:15.8]} 11. e5
{[%clk 0:02:33.7]} 11... Nd5 {[%clk 0:02:13.5]} 12. Bxe7 {[%clk 0:02:21.3]}
12... Qxe7 {[%clk 0:02:11.2]} 13. g3 {[%clk 0:01:45.1]} 13... Nxf4 {[%clk
0:01:42.5]} 14. gxf4 {[%clk 0:01:44.4]} 14... Bxh1 {[%clk 0:01:41.8]} 15. Bg2
{[%clk 0:01:37.5]} 15... Bxg2 {[%clk 0:01:30.7]} 16. Qxg2 {[%clk 0:01:38.4]}
16... Ra7 {[%clk 0:01:03.9]} 17. Qxg7 {[%clk 0:01:33.9]} 17... Qf8 {[%clk
0:01:02]} 18. Qg2 {[%clk 0:00:59.1]} 18... Rg8 {[%clk 0:01:00]} 19. Qh3 {[%clk
0:00:52.9]} 19... Rg6 {[%clk 0:00:39.1]} 20. Kb1 {[%clk 0:00:48]} 20... dxe5
{[%clk 0:00:37.1]} 21. fxe5 {[%clk 0:00:46.3]} 21... Qh6 {[%clk 0:00:33]} 22.
Qf3 {[%clk 0:00:42.2]} 22... Rd7 {[%clk 0:00:29.1]} 23. Qa8 {[%clk 0:00:24.6]}
23... Rd8 {[%clk 0:00:26.1]} 24. a3 {[%clk 0:00:14.5]} 24... Qh5 {[%clk
0:00:25.1]} 25. Rd3 {[%clk 0:00:11.6]} 25... Rg1+ {[%clk 0:00:22.6]} 26. Ka2
{[%clk 0:00:11.3]} 26... Rd1 {[%clk 0:00:15.7]} 27. Rxd1 {[%clk 0:00:02.8]}
27... Qxd1 {[%clk 0:00:14.9]} 0-1

[Event "*** SCC Grand Prix: Titled Tuesday Blitz"]
[Site "Chess.com"]
[Date "2020.07.07"]
[Round "10"]
[White "floplover"]
[Black "ljuks68"]
[Result "0-1"]
[WhiteElo "2306"]
[BlackElo "2433"]
[TimeControl "180+1"]
[EndTime "11:57:45 PDT"]
[Termination "ljuks68 won on time"]

1. d4 {[%clk 0:03:00.9]} 1... d5 {[%clk 0:02:59.5]} 2. c4 {[%clk 0:03:00.7]}
2... c6 {[%clk 0:02:59.2]} 3. Nc3 {[%clk 0:03:00.9]} 3... Nf6 {[%clk 0:02:59.1]}
4. Nf3 {[%clk 0:02:54]} 4... dxc4 {[%clk 0:02:58.3]} 5. a4 {[%clk 0:02:53.8]}
5... Bf5 {[%clk 0:02:58.2]} 6. Ne5 {[%clk 0:02:53.9]} 6... Na6 {[%clk
0:02:58.3]} 7. f3 {[%clk 0:02:48]} 7... Nd7 {[%clk 0:02:57.1]} 8. Nxc4 {[%clk
0:02:28.9]} 8... e5 {[%clk 0:02:54.7]} 9. e4 {[%clk 0:02:08]} 9... exd4 {[%clk
0:02:53.8]} 10. exf5 {[%clk 0:02:06]} 10... dxc3 {[%clk 0:02:53.1]} 11. Qe2+
{[%clk 0:01:59.4]} 11... Be7 {[%clk 0:02:46.4]} 12. Nd6+ {[%clk 0:01:45.5]}
12... Kf8 {[%clk 0:02:45.5]} 13. Nxb7 {[%clk 0:01:45.8]} 13... Qb6 {[%clk
0:02:40.1]} 14. bxc3 {[%clk 0:01:37.5]} 14... Qxb7 {[%clk 0:02:39.4]} 15. Qxa6
{[%clk 0:01:35.8]} 15... Qc7 {[%clk 0:02:30.3]} 16. Be2 {[%clk 0:01:22.3]} 16...
Bc5 {[%clk 0:02:26.4]} 17. Qc4 {[%clk 0:01:12.9]} 17... Qd6 {[%clk 0:01:53.8]}
18. Bf4 {[%clk 0:00:35.1]} 18... Ne5 {[%clk 0:01:52.7]} 19. Qe4 {[%clk
0:00:20.2]} 19... Re8 {[%clk 0:01:48.9]} 20. Rd1 {[%clk 0:00:19.4]} 20... Qf6
{[%clk 0:01:42.2]} 21. Qc2 {[%clk 0:00:06.7]} 21... g5 {[%clk 0:01:30.4]} 22.
Bg3 {[%clk 0:00:05.7]} 22... h5 {[%clk 0:01:24.1]} 23. h4 {[%clk 0:00:05.8]}
23... g4 {[%clk 0:01:24]} 24. Kf1 {[%clk 0:00:05.8]} 24... Be3 {[%clk
0:01:00.6]} 25. c4 {[%clk 0:00:03.4]} 25... Rg8 {[%clk 0:00:56.6]} 26. Bf2
{[%clk 0:00:02.3]} 26... gxf3 {[%clk 0:00:32.9]} 27. Bxf3 {[%clk 0:00:02.1]}
27... Nxf3 {[%clk 0:00:24.8]} 28. gxf3 {[%clk 0:00:02.2]} 28... Qe5 {[%clk
0:00:19.4]} 0-1

[Event "*** SCC Grand Prix: Titled Tuesday Blitz"]
[Site "Chess.com"]
[Date "2020.07.07"]
[Round "10"]
[White "ChessLover0108"]
[Black "jefferyx"]
[Result "0-1"]
[WhiteElo "2694"]
[BlackElo "2904"]
[TimeControl "180+1"]
[EndTime "11:57:47 PDT"]
[Termination "jefferyx won by resignation"]

1. d4 {[%clk 0:03:00.9]} 1... Nf6 {[%clk 0:02:56.6]} 2. c4 {[%clk 0:03:00.5]}
2... c5 {[%clk 0:02:56.9]} 3. d5 {[%clk 0:02:59.5]} 3... b5 {[%clk 0:02:57.5]}
4. cxb5 {[%clk 0:03:00.4]} 4... a6 {[%clk 0:02:58.1]} 5. bxa6 {[%clk 0:02:59.6]}
5... g6 {[%clk 0:02:58.8]} 6. Nc3 {[%clk 0:02:59.8]} 6... Bxa6 {[%clk
0:02:59.5]} 7. e4 {[%clk 0:02:59.6]} 7... Bxf1 {[%clk 0:03:00.4]} 8. Kxf1 {[%clk
0:03:00.3]} 8... d6 {[%clk 0:03:01.3]} 9. Nf3 {[%clk 0:03:00.1]} 9... Bg7 {[%clk
0:03:02]} 10. g3 {[%clk 0:03:00.6]} 10... O-O {[%clk 0:03:02.8]} 11. Kg2 {[%clk
0:03:01.1]} 11... Nbd7 {[%clk 0:03:03.5]} 12. h3 {[%clk 0:03:00.3]} 12... Qb6
{[%clk 0:03:01.1]} 13. Qe2 {[%clk 0:02:55]} 13... Rfb8 {[%clk 0:02:59.5]} 14.
Re1 {[%clk 0:02:13.2]} 14... Ne8 {[%clk 0:02:59.6]} 15. a4 {[%clk 0:02:04.3]}
15... Nc7 {[%clk 0:02:56.5]} 16. Nd2 {[%clk 0:01:55.8]} 16... Qa6 {[%clk
0:02:51.8]} 17. Nc4 {[%clk 0:01:43.8]} 17... Rb4 {[%clk 0:02:51.4]} 18. Na3
{[%clk 0:01:44.7]} 18... Ne5 {[%clk 0:02:50]} 19. Qxa6 {[%clk 0:01:28.6]} 19...
Rxa6 {[%clk 0:02:50.9]} 20. Rd1 {[%clk 0:01:23.4]} 20... Nc4 {[%clk 0:02:50.9]}
21. Nxc4 {[%clk 0:01:15.4]} 21... Rxc4 {[%clk 0:02:51.8]} 22. Bd2 {[%clk
0:00:58.7]} 22... Bxc3 {[%clk 0:02:51.5]} 23. bxc3 {[%clk 0:00:59.6]} 23... Rxe4
{[%clk 0:02:48.6]} 24. Bh6 {[%clk 0:00:50.8]} 24... f6 {[%clk 0:02:39.5]} 25.
Rab1 {[%clk 0:00:49.1]} 25... Kf7 {[%clk 0:02:28.9]} 26. c4 {[%clk 0:00:30.9]}
26... Rxa4 {[%clk 0:01:56.2]} 27. Rb7 {[%clk 0:00:24.2]} 27... Ne8 {[%clk
0:01:56.8]} 28. Rdb1 {[%clk 0:00:22.6]} 28... Raxc4 {[%clk 0:01:51.4]} 29. Rd7
{[%clk 0:00:11.1]} 29... Rb4 {[%clk 0:01:51]} 30. Ra1 {[%clk 0:00:10.7]} 30...
Rb8 {[%clk 0:01:32.4]} 31. Raa7 {[%clk 0:00:09.8]} 31... f5 {[%clk 0:01:32.5]}
32. Bg5 {[%clk 0:00:08.9]} 32... Nf6 {[%clk 0:01:09.2]} 33. Rxd6 {[%clk
0:00:08.9]} 33... Ng8 {[%clk 0:01:09.9]} 34. Rc6 {[%clk 0:00:08.3]} 34... Rb2
{[%clk 0:01:02.2]} 35. d6 {[%clk 0:00:07.2]} 35... Ree2 {[%clk 0:00:59.1]} 36.
Be3 {[%clk 0:00:03]} 36... Rxe3 {[%clk 0:00:58.1]} 37. d7 {[%clk 0:00:03.4]}
37... Rd3 {[%clk 0:00:54.2]} 38. Rc8 {[%clk 0:00:02.5]} 38... Rbd2 {[%clk
0:00:54]} 39. Raa8 {[%clk 0:00:02.5]} 39... Rxd7 {[%clk 0:00:54]} 40. Rf8+
{[%clk 0:00:03]} 40... Ke6 {[%clk 0:00:54.5]} 41. Rxg8 {[%clk 0:00:03.9]} 41...
Rc2 {[%clk 0:00:54.3]} 42. Rac8 {[%clk 0:00:04]} 42... Rdd2 {[%clk 0:00:54.2]}
43. Rg7 {[%clk 0:00:04.1]} 43... Rxf2+ {[%clk 0:00:54.1]} 44. Kg1 {[%clk
0:00:04.4]} 44... Rfd2 {[%clk 0:00:54.3]} 0-1

[Event "*** SCC Grand Prix: Titled Tuesday Blitz"]
[Site "Chess.com"]
[Date "2020.07.07"]
[Round "10"]
[White "anon569"]
[Black "K-Nygren"]
[Result "0-1"]
[WhiteElo "2342"]
[BlackElo "2458"]
[TimeControl "180+1"]
[EndTime "11:57:50 PDT"]
[Termination "K-Nygren won by checkmate"]

1. e4 {[%clk 0:03:00.9]} 1... e5 {[%clk 0:02:59.7]} 2. Nf3 {[%clk 0:03:00]} 2...
f5 {[%clk 0:02:59.9]} 3. exf5 {[%clk 0:02:58]} 3... e4 {[%clk 0:02:59.1]} 4. Nd4
{[%clk 0:02:52.4]} 4... Qf6 {[%clk 0:02:58.9]} 5. Nb5 {[%clk 0:02:31.1]} 5...
Qb6 {[%clk 0:02:45.8]} 6. Qh5+ {[%clk 0:02:27.1]} 6... Kd8 {[%clk 0:02:44.4]} 7.
N1c3 {[%clk 0:02:22.1]} 7... Nf6 {[%clk 0:02:43.6]} 8. Qh4 {[%clk 0:02:20.7]}
8... c6 {[%clk 0:02:40.8]} 9. Na3 {[%clk 0:02:13.9]} 9... d5 {[%clk 0:02:40]}
10. d3 {[%clk 0:02:11.5]} 10... Bxa3 {[%clk 0:02:33.4]} 11. bxa3 {[%clk
0:02:10.8]} 11... Re8 {[%clk 0:02:33.8]} 12. dxe4 {[%clk 0:02:07.7]} 12... Bxf5
{[%clk 0:02:23.5]} 13. Bd3 {[%clk 0:02:01.5]} 13... dxe4 {[%clk 0:02:14]} 14.
Be2 {[%clk 0:02:01.3]} 14... Nd7 {[%clk 0:02:01.3]} 15. O-O {[%clk 0:01:59.6]}
15... Qc5 {[%clk 0:01:57.2]} 16. Qg3 {[%clk 0:01:52.8]} 16... Bg6 {[%clk
0:01:35.6]} 17. Be3 {[%clk 0:01:49.9]} 17... Qxa3 {[%clk 0:01:08.1]} 18. Rfd1
{[%clk 0:01:47.1]} 18... Re7 {[%clk 0:01:08]} 19. Bd4 {[%clk 0:01:38.9]} 19...
Ke8 {[%clk 0:01:07.6]} 20. Rac1 {[%clk 0:01:37.8]} 20... Rd8 {[%clk 0:01:06.4]}
21. Rb1 {[%clk 0:01:37.5]} 21... b5 {[%clk 0:01:04.3]} 22. Bxf6 {[%clk
0:01:28.8]} 22... gxf6 {[%clk 0:01:02.4]} 23. Rb3 {[%clk 0:01:24.9]} 23... Qc5
{[%clk 0:01:01.6]} 24. Bg4 {[%clk 0:01:14.9]} 24... f5 {[%clk 0:00:57.4]} 25.
Be2 {[%clk 0:01:11]} 25... Qe5 {[%clk 0:00:57.2]} 26. Qe3 {[%clk 0:01:04.6]}
26... f4 {[%clk 0:00:55.1]} 27. Qxa7 {[%clk 0:01:03.3]} 27... f3 {[%clk
0:00:55.3]} 28. Bxb5 {[%clk 0:00:54.6]} 28... cxb5 {[%clk 0:00:47.2]} 29. Nxb5
{[%clk 0:00:54.5]} 29... Qg5 {[%clk 0:00:41]} 30. g3 {[%clk 0:00:43.2]} 30...
Qg4 {[%clk 0:00:41.1]} 31. Kh1 {[%clk 0:00:20.8]} 31... Qh3 {[%clk 0:00:40.7]}
32. Rg1 {[%clk 0:00:20]} 32... Re5 {[%clk 0:00:40.7]} 33. Nd6+ {[%clk
0:00:18.8]} 33... Kf8 {[%clk 0:00:39.3]} 34. Qc7 {[%clk 0:00:17.4]} 34... Qxh2+
{[%clk 0:00:37.4]} 35. Kxh2 {[%clk 0:00:16.8]} 35... Rh5# {[%clk 0:00:37.1]} 0-1